{"text_format":"1","workbook":"xlsx","n_sheets":7,"sheets":["MENU","メッセージマスタ","ハラスメント調査データ","調査結果一覧","ハラスメント調査結果一覧","偏差値調査データ","偏差値調査結果一覧"],"not_rendered":{"charts":0,"images":2,"macros":1,"external_links":0,"defined_names":3,"comments":2,"pivot_tables":0},"unopened":[],"bounds":{"document_bytes":16777216,"sheet_cells":100000,"rows_first":2000,"rows_last":500,"rows_between":2000,"halvings":0,"cell_chars":16384,"cell_head_chars":4096},"cells_cut":0,"cells_raw":0,"read":"whole","date_system":"1900"}

{"sheet":"MENU","index":0,"n_rows":68,"n_cols":22,"rows_kept":68,"cut":false,"hidden":false,"merged":[[19,1,20,1],[21,1,22,1],[23,1,24,1],[25,1,26,1],[20,2,20,16],[22,2,22,16],[26,2,26,16],[23,7,23,16],[17,1,18,1],[17,2,17,16],[18,2,18,16],[8,1,9,1],[9,2,9,16],[10,1,11,1],[11,2,11,16],[12,1,13,1],[13,2,13,16],[16,2,16,16],[4,1,5,1],[4,2,4,16],[5,2,5,16],[6,1,7,1],[7,2,7,16],[19,17,19,20],[21,17,21,20],[21,21,21,40],[0,2,0,20],[1,2,1,40],[3,2,3,16],[6,17,6,20],[12,17,12,20],[12,21,12,40],[8,17,8,20],[8,21,8,40],[10,17,10,20],[10,21,10,40],[10,7,10,16],[30,0,57,28],[23,17,23,20],[23,21,23,40],[25,17,25,20],[25,21,25,40],[24,2,24,16]]}
[null,null,"調査グループ別数値推移一覧化ツール【MENU】",null,null,null,null,null,null,null,null,null,null,null,null,null,null,null,null,null,null,"v1.1"]
[null,null,"\n【ツール説明】\n　このツールは「調査グループ別数値推移csv」を一覧化し、お手元で見やすくするためのツールです。\n　管理画面と同じ色付けの内容がエクセル上でご覧いただけます。\n　フォーマットが ＜A. 偏差値系の調査＞ と ＜B. ハラスメント調査＞ で異なりますので、\n　作成したいファイルをお確かめの上、各手順で操作ください。\n　【推奨環境：Windows11、Excel2016以降（64ビット）】\n\n■ツールが動作しない場合\n　電子署名されたマクロツールを実行可能にする設定で、ツール実行が可能になります。設定方法は　こちら　よりご確認ください。"]
[]
[null,"A","偏差値系調査　ツール操作手順\n　※偏差値系調査 = エンゲージメント調査、メンタルヘルス調査、\n　　　　　　　　　  メンタリティマネジメント調査、メンタルタフネス度調査\n手順1～手順5まで順番に実行してください。",null,null,null,null,null,null,null,null,null,null,null,null,null,null,"実行時間",null,null,null,"ファイルパス"]
[null,"手順１","CSVファイルのダウンロード"]
[null,null,"管理者画面より「調査グループ別数値推移csv」をダウンロードして任意のフォルダへ格納します。\n　①「調査」 ＞「調査一覧」＞「終了」または「期間中」から該当の調査 を開く\n　②右上の「エクスポート」ボタン ＞「調査グループ別数値推移csv」をダウンロード "]
[null,"手順２","初期化"]
[null,null,"このツールファイルの不要なデータを削除し、初期化します。\n偏差値系、ハラスメント系それぞれの操作に「初期化」ボタンがありますが、どちらのボタンを押下してもこのツール内のデータが初期化されます。"]
[null,"手順３","偏差値系調査データインポート"]
[null,null,"手順１で管理画面からダウンロードしたcsvファイル【調査グループ別数値推移_XXX_yyyymmdd.csv】をインポートします。"]
[null,"手順４","調査名入力",null,null,"調査名："]
[null,null,"本資料のタイトルとファイル名に使用する調査名を青枠内に手入力します。"]
[null,"手順５","偏差値調査結果一覧生成"]
[null,null,"取り込んだcsvの内容に管理画面と同等の色付け加工をした一覧を別ファイルとして生成します。\n完成したファイルはこの作成ツールが格納されている同フォルダに保存されます。"]
[]
[]
[null,"B","ハラスメント調査　ツール操作手順\n手順1～手順5まで順番に実行してください。",null,null,null,null,null,null,null,null,null,null,null,null,null,null,"実行時間",null,null,null,"ファイルパス"]
[null,"手順１","CSVファイルのダウンロード"]
[null,null,"管理者画面より「調査グループ別数値推移csv」をダウンロードして任意のフォルダへ格納します。\n　①「調査」 ＞「調査一覧」＞「終了」または「期間中」から該当の調査 を開く\n　②右上の「エクスポート」ボタン ＞「調査グループ別数値推移csv」をダウンロード "]
[null,"手順２","初期化"]
[null,null,"このツールファイルの不要なデータを削除し、初期化します。\n偏差値系、ハラスメント系それぞれの操作に「初期化」ボタンがありますが、どちらのボタンを押下してもこのツール内のデータが初期化されます。"]
[null,"手順３","ハラスメント調査データインポート"]
[null,null,"手順１で管理画面からダウンロードしたハラスメント調査のcsvファイル【調査グループ別数値推移_XXX_yyyymmdd.csv】をインポートします。"]
[null,"手順４","調査名入力",null,null,"調査名："]
[null,null,"本資料のタイトルとファイル名に使用する調査名を青枠内に手入力します。"]
[null,"手順５","ハラスメント調査結果一覧生成"]
[null,null,"取り込んだcsvの内容に管理画面と同等の色付け加工をした一覧を別ファイルとして生成します。\n完成したファイルはこの作成ツールが格納されている同フォルダに保存されます。"]
[]
[]
[]
[]
[]
[]
[]
[]
[]
[]
[]
[]
[]
[]
[]
[]
[]
[]
[]
[]
[]
[]
[]
[]
[]
[]
[]
[]
[]
[]
[]
[]
[]
[null,"①　任意の調査名が「ファイル名」と「資料のタイトル」に反映されます。"]
[]
[null,"②　出力csvファイルに反映されている回次の調査実施期間が反映されます。"]
[]
[null,"③　色付けの判例：管理画面と同じ色付け条件で色付けされます。"]
[]
[null,"④　csvの数字を管理画面と同様の色付けで表示します。差異については文字の色付け箇所が"]
[null,"　　分かりやすいように背景を薄い黄色にしています。（ハラスメントについては上昇箇所のみ薄い黄色に色付け）"]

{"sheet":"メッセージマスタ","index":1,"n_rows":10,"n_cols":1,"rows_kept":10,"cut":false,"hidden":true,"merged":[[4,0,4,8],[5,0,5,8]]}
["インポートCSVファイルはハラスメント調査データではないようです。ご確認ください。"]
["ハラスメント調査データをインポートしました。"]
["調査名を入力してください。"]
["ハラスメント調査結果一覧を生成しました。"]
["ハラスメント調査データを既にインポート済みですので、偏差値調査データをインポート不可。\nやり直しの場合、「初期化」ボタンを押してください。"]
["偏差値調査データを既にインポート済みですので、ハラスメント調査データをインポート不可。\nやり直しの場合、「初期化」ボタンを押してください。"]
["偏差値調査データをインポートしました。"]
["偏差値調査結果一覧を生成しました。"]
["ツール初期化を行います。よろしいでしょうか。"]
["初期化完了しました。"]

{"sheet":"ハラスメント調査データ","index":2,"n_rows":0,"n_cols":0,"rows_kept":0,"cut":false,"hidden":true,"merged":[]}

{"sheet":"調査結果一覧","index":3,"n_rows":27,"n_cols":21,"rows_kept":27,"cut":false,"hidden":false,"merged":[[24,5,26,5],[21,0,23,0],[21,1,23,1],[21,2,23,2],[21,3,23,3],[21,4,23,4],[21,5,23,5],[24,0,26,0],[24,1,26,1],[24,2,26,2],[24,3,26,3],[24,4,26,4],[18,5,20,5],[15,0,17,0],[15,1,17,1],[15,2,17,2],[15,3,17,3],[15,4,17,4],[15,5,17,5],[18,0,20,0],[18,1,20,1],[18,2,20,2],[18,3,20,3],[18,4,20,4],[12,5,14,5],[9,0,11,0],[9,1,11,1],[9,2,11,2],[9,3,11,3],[9,4,11,4],[9,5,11,5],[12,0,14,0],[12,1,14,1],[12,2,14,2],[12,3,14,3],[12,4,14,4]]}
[{"$f":"#REF!","v":{"$error":"#REF!"}}]
[]
["実施期間",{"$f":"\"＃\"&ハラスメント調査データ!I2","v":"＃"},{"$f":"ハラスメント調査データ!J2&\"　～　\"&ハラスメント調査データ!K2","v":"　～　"},null,{"$f":"\"＃\"&ハラスメント調査データ!I3","v":"＃"},{"$f":"ハラスメント調査データ!J3&\"　～　\"&ハラスメント調査データ!K3","v":"　～　"}]
[]
["※値はすべて％です。設問ごとに、「とても当てはまる」「まあまあ当てはまる」と回答した人の合計の割合を表示しています。"]
["【比較】▼：前回より0.1以上下降　▲：前回より0.1以上上昇　"]
[]
["調査グループ名",null,null,null,null,null,"実施状況",null,null,null,"個　別　因　子"]
[{"$f":"MID(ハラスメント調査データ!C1,9,100)","v":""},{"$f":"MID(ハラスメント調査データ!D1,9,100)","v":""},{"$f":"MID(ハラスメント調査データ!E1,9,100)","v":""},{"$f":"MID(ハラスメント調査データ!F1,9,100)","v":""},{"$f":"MID(ハラスメント調査データ!G1,9,100)","v":""},{"$f":"MID(ハラスメント調査データ!H1,9,100)","v":""},"回次","対象人数","回答人数","回答率",{"$f":"ハラスメント調査データ!O1","v":0},{"$f":"ハラスメント調査データ!P1","v":0},{"$f":"ハラスメント調査データ!Q1","v":0},{"$f":"ハラスメント調査データ!R1","v":0},{"$f":"ハラスメント調査データ!S1","v":0},{"$f":"ハラスメント調査データ!T1","v":0},{"$f":"ハラスメント調査データ!U1","v":0},{"$f":"ハラスメント調査データ!V1","v":0},{"$f":"ハラスメント調査データ!W1","v":0},{"$f":"ハラスメント調査データ!X1","v":0},{"$f":"ハラスメント調査データ!Y1","v":0}]
[{"$f":"ハラスメント調査データ!C2","v":0},{"$f":"ハラスメント調査データ!D2","v":0},{"$f":"ハラスメント調査データ!E2","v":0},{"$f":"ハラスメント調査データ!F2","v":0},{"$f":"ハラスメント調査データ!G2","v":0},{"$f":"ハラスメント調査データ!H2","v":0},{"$f":"ハラスメント調査データ!I2","v":0},{"$f":"ハラスメント調査データ!L2","v":0},{"$f":"ハラスメント調査データ!M2","v":0},{"$f":"ハラスメント調査データ!N2*0.01","v":0},{"$f":"(ハラスメント調査データ!O2*0.01)","v":0},{"$f":"(ハラスメント調査データ!P2*0.01)","v":0},{"$f":"(ハラスメント調査データ!Q2*0.01)","v":0},{"$f":"(ハラスメント調査データ!R2*0.01)","v":0},{"$f":"(ハラスメント調査データ!S2*0.01)","v":0},{"$f":"(ハラスメント調査データ!T2*0.01)","v":0},{"$f":"(ハラスメント調査データ!U2*0.01)","v":0},{"$f":"(ハラスメント調査データ!V2*0.01)","v":0},{"$f":"(ハラスメント調査データ!W2*0.01)","v":0},{"$f":"(ハラスメント調査データ!X2*0.01)","v":0},{"$f":"(ハラスメント調査データ!Y2*0.01)","v":0}]
[null,null,null,null,null,null,{"$f":"ハラスメント調査データ!I3","v":0},{"$f":"ハラスメント調査データ!L3","v":0},{"$f":"ハラスメント調査データ!M3","v":0},{"$f":"ハラスメント調査データ!N3*0.01","v":0},{"$f":"(ハラスメント調査データ!O3*0.01)","v":0},{"$f":"(ハラスメント調査データ!P3*0.01)","v":0},{"$f":"(ハラスメント調査データ!Q3*0.01)","v":0},{"$f":"(ハラスメント調査データ!R3*0.01)","v":0},{"$f":"(ハラスメント調査データ!S3*0.01)","v":0},{"$f":"(ハラスメント調査データ!T3*0.01)","v":0},{"$f":"(ハラスメント調査データ!U3*0.01)","v":0},{"$f":"(ハラスメント調査データ!V3*0.01)","v":0},{"$f":"(ハラスメント調査データ!W3*0.01)","v":0},{"$f":"(ハラスメント調査データ!X3*0.01)","v":0},{"$f":"(ハラスメント調査データ!Y3*0.01)","v":0}]
[null,null,null,null,null,null,{"$f":"ハラスメント調査データ!I4","v":0},null,null,null,{"$f":"ハラスメント調査データ!O4","v":0},{"$f":"ハラスメント調査データ!P4","v":0},{"$f":"ハラスメント調査データ!Q4","v":0},{"$f":"ハラスメント調査データ!R4","v":0},{"$f":"ハラスメント調査データ!S4","v":0},{"$f":"ハラスメント調査データ!T4","v":0},{"$f":"ハラスメント調査データ!U4","v":0},{"$f":"ハラスメント調査データ!V4","v":0},{"$f":"ハラスメント調査データ!W4","v":0},{"$f":"ハラスメント調査データ!X4","v":0},{"$f":"ハラスメント調査データ!Y4","v":0}]
[{"$f":"ハラスメント調査データ!C5","v":0},{"$f":"ハラスメント調査データ!D5","v":0},{"$f":"ハラスメント調査データ!E5","v":0},{"$f":"ハラスメント調査データ!F5","v":0},{"$f":"ハラスメント調査データ!G5","v":0},{"$f":"ハラスメント調査データ!H5","v":0},{"$f":"ハラスメント調査データ!I5","v":0},{"$f":"ハラスメント調査データ!L5","v":0},{"$f":"ハラスメント調査データ!M5","v":0},{"$f":"ハラスメント調査データ!N5*0.01","v":0},{"$f":"ハラスメント調査データ!O5","v":0},{"$f":"ハラスメント調査データ!P5","v":0},{"$f":"ハラスメント調査データ!Q5","v":0},{"$f":"ハラスメント調査データ!R5","v":0},{"$f":"ハラスメント調査データ!S5","v":0},{"$f":"ハラスメント調査データ!T5","v":0},{"$f":"ハラスメント調査データ!U5","v":0},{"$f":"ハラスメント調査データ!V5","v":0},{"$f":"ハラスメント調査データ!W5","v":0},{"$f":"ハラスメント調査データ!X5","v":0},{"$f":"ハラスメント調査データ!Y5","v":0}]
[null,null,null,null,null,null,{"$f":"ハラスメント調査データ!I6","v":0},{"$f":"ハラスメント調査データ!L6","v":0},{"$f":"ハラスメント調査データ!M6","v":0},{"$f":"ハラスメント調査データ!N6*0.01","v":0},{"$f":"ハラスメント調査データ!O6","v":0},{"$f":"ハラスメント調査データ!P6","v":0},{"$f":"ハラスメント調査データ!Q6","v":0},{"$f":"ハラスメント調査データ!R6","v":0},{"$f":"ハラスメント調査データ!S6","v":0},{"$f":"ハラスメント調査データ!T6","v":0},{"$f":"ハラスメント調査データ!U6","v":0},{"$f":"ハラスメント調査データ!V6","v":0},{"$f":"ハラスメント調査データ!W6","v":0},{"$f":"ハラスメント調査データ!X6","v":0},{"$f":"ハラスメント調査データ!Y6","v":0}]
[null,null,null,null,null,null,{"$f":"ハラスメント調査データ!I7","v":0},null,null,null,{"$f":"ハラスメント調査データ!O7","v":0},{"$f":"ハラスメント調査データ!P7","v":0},{"$f":"ハラスメント調査データ!Q7","v":0},{"$f":"ハラスメント調査データ!R7","v":0},{"$f":"ハラスメント調査データ!S7","v":0},{"$f":"ハラスメント調査データ!T7","v":0},{"$f":"ハラスメント調査データ!U7","v":0},{"$f":"ハラスメント調査データ!V7","v":0},{"$f":"ハラスメント調査データ!W7","v":0},{"$f":"ハラスメント調査データ!X7","v":0},{"$f":"ハラスメント調査データ!Y7","v":0}]
[{"$f":"ハラスメント調査データ!C8","v":0},{"$f":"ハラスメント調査データ!D8","v":0},{"$f":"ハラスメント調査データ!E8","v":0},{"$f":"ハラスメント調査データ!F8","v":0},{"$f":"ハラスメント調査データ!G8","v":0},{"$f":"ハラスメント調査データ!H8","v":0},{"$f":"ハラスメント調査データ!I8","v":0},{"$f":"ハラスメント調査データ!L8","v":0},{"$f":"ハラスメント調査データ!M8","v":0},{"$f":"ハラスメント調査データ!N8*0.01","v":0},{"$f":"ハラスメント調査データ!O8","v":0},{"$f":"ハラスメント調査データ!P8","v":0},{"$f":"ハラスメント調査データ!Q8","v":0},{"$f":"ハラスメント調査データ!R8","v":0},{"$f":"ハラスメント調査データ!S8","v":0},{"$f":"ハラスメント調査データ!T8","v":0},{"$f":"ハラスメント調査データ!U8","v":0},{"$f":"ハラスメント調査データ!V8","v":0},{"$f":"ハラスメント調査データ!W8","v":0},{"$f":"ハラスメント調査データ!X8","v":0},{"$f":"ハラスメント調査データ!Y8","v":0}]
[null,null,null,null,null,null,{"$f":"ハラスメント調査データ!I9","v":0},{"$f":"ハラスメント調査データ!L9","v":0},{"$f":"ハラスメント調査データ!M9","v":0},{"$f":"ハラスメント調査データ!N9*0.01","v":0},{"$f":"ハラスメント調査データ!O9","v":0},{"$f":"ハラスメント調査データ!P9","v":0},{"$f":"ハラスメント調査データ!Q9","v":0},{"$f":"ハラスメント調査データ!R9","v":0},{"$f":"ハラスメント調査データ!S9","v":0},{"$f":"ハラスメント調査データ!T9","v":0},{"$f":"ハラスメント調査データ!U9","v":0},{"$f":"ハラスメント調査データ!V9","v":0},{"$f":"ハラスメント調査データ!W9","v":0},{"$f":"ハラスメント調査データ!X9","v":0},{"$f":"ハラスメント調査データ!Y9","v":0}]
[null,null,null,null,null,null,{"$f":"ハラスメント調査データ!I10","v":0},null,null,null,{"$f":"ハラスメント調査データ!O10","v":0},{"$f":"ハラスメント調査データ!P10","v":0},{"$f":"ハラスメント調査データ!Q10","v":0},{"$f":"ハラスメント調査データ!R10","v":0},{"$f":"ハラスメント調査データ!S10","v":0},{"$f":"ハラスメント調査データ!T10","v":0},{"$f":"ハラスメント調査データ!U10","v":0},{"$f":"ハラスメント調査データ!V10","v":0},{"$f":"ハラスメント調査データ!W10","v":0},{"$f":"ハラスメント調査データ!X10","v":0},{"$f":"ハラスメント調査データ!Y10","v":0}]
[{"$f":"ハラスメント調査データ!C11","v":0},{"$f":"ハラスメント調査データ!D11","v":0},{"$f":"ハラスメント調査データ!E11","v":0},{"$f":"ハラスメント調査データ!F11","v":0},{"$f":"ハラスメント調査データ!G11","v":0},{"$f":"ハラスメント調査データ!H11","v":0},{"$f":"ハラスメント調査データ!I11","v":0},{"$f":"ハラスメント調査データ!L11","v":0},{"$f":"ハラスメント調査データ!M11","v":0},{"$f":"ハラスメント調査データ!N11*0.01","v":0},{"$f":"ハラスメント調査データ!O11","v":0},{"$f":"ハラスメント調査データ!P11","v":0},{"$f":"ハラスメント調査データ!Q11","v":0},{"$f":"ハラスメント調査データ!R11","v":0},{"$f":"ハラスメント調査データ!S11","v":0},{"$f":"ハラスメント調査データ!T11","v":0},{"$f":"ハラスメント調査データ!U11","v":0},{"$f":"ハラスメント調査データ!V11","v":0},{"$f":"ハラスメント調査データ!W11","v":0},{"$f":"ハラスメント調査データ!X11","v":0},{"$f":"ハラスメント調査データ!Y11","v":0}]
[null,null,null,null,null,null,{"$f":"ハラスメント調査データ!I12","v":0},{"$f":"ハラスメント調査データ!L12","v":0},{"$f":"ハラスメント調査データ!M12","v":0},{"$f":"ハラスメント調査データ!N12*0.01","v":0},{"$f":"ハラスメント調査データ!O12","v":0},{"$f":"ハラスメント調査データ!P12","v":0},{"$f":"ハラスメント調査データ!Q12","v":0},{"$f":"ハラスメント調査データ!R12","v":0},{"$f":"ハラスメント調査データ!S12","v":0},{"$f":"ハラスメント調査データ!T12","v":0},{"$f":"ハラスメント調査データ!U12","v":0},{"$f":"ハラスメント調査データ!V12","v":0},{"$f":"ハラスメント調査データ!W12","v":0},{"$f":"ハラスメント調査データ!X12","v":0},{"$f":"ハラスメント調査データ!Y12","v":0}]
[null,null,null,null,null,null,{"$f":"ハラスメント調査データ!I13","v":0},null,null,null,{"$f":"ハラスメント調査データ!O13","v":0},{"$f":"ハラスメント調査データ!P13","v":0},{"$f":"ハラスメント調査データ!Q13","v":0},{"$f":"ハラスメント調査データ!R13","v":0},{"$f":"ハラスメント調査データ!S13","v":0},{"$f":"ハラスメント調査データ!T13","v":0},{"$f":"ハラスメント調査データ!U13","v":0},{"$f":"ハラスメント調査データ!V13","v":0},{"$f":"ハラスメント調査データ!W13","v":0},{"$f":"ハラスメント調査データ!X13","v":0},{"$f":"ハラスメント調査データ!Y13","v":0}]
[{"$f":"ハラスメント調査データ!C14","v":0},{"$f":"ハラスメント調査データ!D14","v":0},{"$f":"ハラスメント調査データ!E14","v":0},{"$f":"ハラスメント調査データ!F14","v":0},{"$f":"ハラスメント調査データ!G14","v":0},{"$f":"ハラスメント調査データ!H14","v":0},{"$f":"ハラスメント調査データ!I14","v":0},{"$f":"ハラスメント調査データ!L14","v":0},{"$f":"ハラスメント調査データ!M14","v":0},{"$f":"ハラスメント調査データ!N14*0.01","v":0},{"$f":"ハラスメント調査データ!O14","v":0},{"$f":"ハラスメント調査データ!P14","v":0},{"$f":"ハラスメント調査データ!Q14","v":0},{"$f":"ハラスメント調査データ!R14","v":0},{"$f":"ハラスメント調査データ!S14","v":0},{"$f":"ハラスメント調査データ!T14","v":0},{"$f":"ハラスメント調査データ!U14","v":0},{"$f":"ハラスメント調査データ!V14","v":0},{"$f":"ハラスメント調査データ!W14","v":0},{"$f":"ハラスメント調査データ!X14","v":0},{"$f":"ハラスメント調査データ!Y14","v":0}]
[null,null,null,null,null,null,{"$f":"ハラスメント調査データ!I15","v":0},{"$f":"ハラスメント調査データ!L15","v":0},{"$f":"ハラスメント調査データ!M15","v":0},{"$f":"ハラスメント調査データ!N15*0.01","v":0},{"$f":"ハラスメント調査データ!O15","v":0},{"$f":"ハラスメント調査データ!P15","v":0},{"$f":"ハラスメント調査データ!Q15","v":0},{"$f":"ハラスメント調査データ!R15","v":0},{"$f":"ハラスメント調査データ!S15","v":0},{"$f":"ハラスメント調査データ!T15","v":0},{"$f":"ハラスメント調査データ!U15","v":0},{"$f":"ハラスメント調査データ!V15","v":0},{"$f":"ハラスメント調査データ!W15","v":0},{"$f":"ハラスメント調査データ!X15","v":0},{"$f":"ハラスメント調査データ!Y15","v":0}]
[null,null,null,null,null,null,{"$f":"ハラスメント調査データ!I16","v":0},null,null,null,{"$f":"ハラスメント調査データ!O16","v":0},{"$f":"ハラスメント調査データ!P16","v":0},{"$f":"ハラスメント調査データ!Q16","v":0},{"$f":"ハラスメント調査データ!R16","v":0},{"$f":"ハラスメント調査データ!S16","v":0},{"$f":"ハラスメント調査データ!T16","v":0},{"$f":"ハラスメント調査データ!U16","v":0},{"$f":"ハラスメント調査データ!V16","v":0},{"$f":"ハラスメント調査データ!W16","v":0},{"$f":"ハラスメント調査データ!X16","v":0},{"$f":"ハラスメント調査データ!Y16","v":0}]
[{"$f":"ハラスメント調査データ!C17","v":0},{"$f":"ハラスメント調査データ!D17","v":0},{"$f":"ハラスメント調査データ!E17","v":0},{"$f":"ハラスメント調査データ!F17","v":0},{"$f":"ハラスメント調査データ!G17","v":0},{"$f":"ハラスメント調査データ!H17","v":0},{"$f":"ハラスメント調査データ!I17","v":0},{"$f":"ハラスメント調査データ!L17","v":0},{"$f":"ハラスメント調査データ!M17","v":0},{"$f":"ハラスメント調査データ!N17*0.01","v":0},{"$f":"ハラスメント調査データ!O17","v":0},{"$f":"ハラスメント調査データ!P17","v":0},{"$f":"ハラスメント調査データ!Q17","v":0},{"$f":"ハラスメント調査データ!R17","v":0},{"$f":"ハラスメント調査データ!S17","v":0},{"$f":"ハラスメント調査データ!T17","v":0},{"$f":"ハラスメント調査データ!U17","v":0},{"$f":"ハラスメント調査データ!V17","v":0},{"$f":"ハラスメント調査データ!W17","v":0},{"$f":"ハラスメント調査データ!X17","v":0},{"$f":"ハラスメント調査データ!Y17","v":0}]
[null,null,null,null,null,null,{"$f":"ハラスメント調査データ!I18","v":0},{"$f":"ハラスメント調査データ!L18","v":0},{"$f":"ハラスメント調査データ!M18","v":0},{"$f":"ハラスメント調査データ!N18*0.01","v":0},{"$f":"ハラスメント調査データ!O18","v":0},{"$f":"ハラスメント調査データ!P18","v":0},{"$f":"ハラスメント調査データ!Q18","v":0},{"$f":"ハラスメント調査データ!R18","v":0},{"$f":"ハラスメント調査データ!S18","v":0},{"$f":"ハラスメント調査データ!T18","v":0},{"$f":"ハラスメント調査データ!U18","v":0},{"$f":"ハラスメント調査データ!V18","v":0},{"$f":"ハラスメント調査データ!W18","v":0},{"$f":"ハラスメント調査データ!X18","v":0},{"$f":"ハラスメント調査データ!Y18","v":0}]
[null,null,null,null,null,null,{"$f":"ハラスメント調査データ!I19","v":0},null,null,null,{"$f":"ハラスメント調査データ!O19","v":0},{"$f":"ハラスメント調査データ!P19","v":0},{"$f":"ハラスメント調査データ!Q19","v":0},{"$f":"ハラスメント調査データ!R19","v":0},{"$f":"ハラスメント調査データ!S19","v":0},{"$f":"ハラスメント調査データ!T19","v":0},{"$f":"ハラスメント調査データ!U19","v":0},{"$f":"ハラスメント調査データ!V19","v":0},{"$f":"ハラスメント調査データ!W19","v":0},{"$f":"ハラスメント調査データ!X19","v":0},{"$f":"ハラスメント調査データ!Y19","v":0}]

{"sheet":"ハラスメント調査結果一覧","index":4,"n_rows":12,"n_cols":21,"rows_kept":12,"cut":false,"hidden":true,"merged":[]}
[{"$f":"\"■\"&MENU!H24&\"　\"&\"調査グループ別調査結果一覧\"","v":"■　調査グループ別調査結果一覧"}]
[]
["実施期間",{"$f":"(\"＃\"&ハラスメント調査データ!I2)&\"：\"&TEXT(ハラスメント調査データ!J2,\"yyyy/m/d\")&\"　～　\"&TEXT(ハラスメント調査データ!K2,\"yyyy/m/d\")","v":"＃：1900/1/0　～　1900/1/0"},null,null,{"$f":"(\"＃\"&ハラスメント調査データ!I3)&\"：\"&TEXT(ハラスメント調査データ!J3,\"yyyy/m/d\")&\"　～　\"&TEXT(ハラスメント調査データ!K3,\"yyyy/m/d\")","v":"＃：1900/1/0　～　1900/1/0"}]
[]
["※個別設問の値はすべて％です。設問ごとに、「とても当てはまる」「まあまあ当てはまる」と回答した人の合計の割合を表示しています。"]
["【比較】▼：前回より0.1以上下降　▲：前回より0.1以上上昇　上昇箇所については黄色セル"]
[]
["調査グループ名",null,null,null,null,null,"実施状況",null,null,null,"個別設問"]
[{"$f":"MID(ハラスメント調査データ!C1,9,100)","v":""},{"$f":"MID(ハラスメント調査データ!D1,9,100)","v":""},{"$f":"MID(ハラスメント調査データ!E1,9,100)","v":""},{"$f":"MID(ハラスメント調査データ!F1,9,100)","v":""},{"$f":"MID(ハラスメント調査データ!G1,9,100)","v":""},{"$f":"MID(ハラスメント調査データ!H1,9,100)","v":""},"回次","対象人数","回答人数","回答率",{"$f":"ハラスメント調査データ!O1","v":0},{"$f":"ハラスメント調査データ!P1","v":0},{"$f":"ハラスメント調査データ!Q1","v":0},{"$f":"ハラスメント調査データ!R1","v":0},{"$f":"ハラスメント調査データ!S1","v":0},{"$f":"ハラスメント調査データ!T1","v":0},{"$f":"ハラスメント調査データ!U1","v":0},{"$f":"ハラスメント調査データ!V1","v":0},{"$f":"ハラスメント調査データ!W1","v":0},{"$f":"ハラスメント調査データ!X1","v":0},{"$f":"ハラスメント調査データ!Y1","v":0}]
[{"$f":"ハラスメント調査データ!C2","v":0},{"$f":"ハラスメント調査データ!D2","v":0},{"$f":"ハラスメント調査データ!E2","v":0},{"$f":"ハラスメント調査データ!F2","v":0},{"$f":"ハラスメント調査データ!G2","v":0},{"$f":"ハラスメント調査データ!H2","v":0},{"$f":"\"#\"&ハラスメント調査データ!I2","v":"#"},{"$f":"ハラスメント調査データ!L2","v":0},{"$f":"ハラスメント調査データ!M2","v":0},{"$f":"ハラスメント調査データ!N2*0.01","v":0},{"$f":"IF(ISNUMBER(ハラスメント調査データ!O2),(ハラスメント調査データ!O2*0.01),ハラスメント調査データ!O2)","v":0},{"$f":"IF(ISNUMBER(ハラスメント調査データ!P2),(ハラスメント調査データ!P2*0.01),ハラスメント調査データ!P2)","v":0},{"$f":"IF(ISNUMBER(ハラスメント調査データ!Q2),(ハラスメント調査データ!Q2*0.01),ハラスメント調査データ!Q2)","v":0},{"$f":"IF(ISNUMBER(ハラスメント調査データ!R2),(ハラスメント調査データ!R2*0.01),ハラスメント調査データ!R2)","v":0},{"$f":"IF(ISNUMBER(ハラスメント調査データ!S2),(ハラスメント調査データ!S2*0.01),ハラスメント調査データ!S2)","v":0},{"$f":"IF(ISNUMBER(ハラスメント調査データ!T2),(ハラスメント調査データ!T2*0.01),ハラスメント調査データ!T2)","v":0},{"$f":"IF(ISNUMBER(ハラスメント調査データ!U2),(ハラスメント調査データ!U2*0.01),ハラスメント調査データ!U2)","v":0},{"$f":"IF(ISNUMBER(ハラスメント調査データ!V2),(ハラスメント調査データ!V2*0.01),ハラスメント調査データ!V2)","v":0},{"$f":"IF(ISNUMBER(ハラスメント調査データ!W2),(ハラスメント調査データ!W2*0.01),ハラスメント調査データ!W2)","v":0},{"$f":"IF(ISNUMBER(ハラスメント調査データ!X2),(ハラスメント調査データ!X2*0.01),ハラスメント調査データ!X2)","v":0},{"$f":"IF(ISNUMBER(ハラスメント調査データ!Y2),(ハラスメント調査データ!Y2*0.01),ハラスメント調査データ!Y2)","v":0}]
[{"$f":"A10","v":0},0,0,{"$f":"ハラスメント調査データ!F3","v":0},{"$f":"ハラスメント調査データ!G3","v":0},{"$f":"ハラスメント調査データ!H3","v":0},{"$f":"\"#\"&ハラスメント調査データ!I3","v":"#"},{"$f":"ハラスメント調査データ!L3","v":0},{"$f":"ハラスメント調査データ!M3","v":0},{"$f":"ハラスメント調査データ!N3*0.01","v":0},{"$f":"IF(ISNUMBER(ハラスメント調査データ!O3),(ハラスメント調査データ!O3*0.01),ハラスメント調査データ!O3)","v":0},{"$f":"IF(ISNUMBER(ハラスメント調査データ!P3),(ハラスメント調査データ!P3*0.01),ハラスメント調査データ!P3)","v":0},{"$f":"IF(ISNUMBER(ハラスメント調査データ!Q3),(ハラスメント調査データ!Q3*0.01),ハラスメント調査データ!Q3)","v":0},{"$f":"IF(ISNUMBER(ハラスメント調査データ!R3),(ハラスメント調査データ!R3*0.01),ハラスメント調査データ!R3)","v":0},{"$f":"IF(ISNUMBER(ハラスメント調査データ!S3),(ハラスメント調査データ!S3*0.01),ハラスメント調査データ!S3)","v":0},{"$f":"IF(ISNUMBER(ハラスメント調査データ!T3),(ハラスメント調査データ!T3*0.01),ハラスメント調査データ!T3)","v":0},{"$f":"IF(ISNUMBER(ハラスメント調査データ!U3),(ハラスメント調査データ!U3*0.01),ハラスメント調査データ!U3)","v":0},{"$f":"IF(ISNUMBER(ハラスメント調査データ!V3),(ハラスメント調査データ!V3*0.01),ハラスメント調査データ!V3)","v":0},{"$f":"IF(ISNUMBER(ハラスメント調査データ!W3),(ハラスメント調査データ!W3*0.01),ハラスメント調査データ!W3)","v":0},{"$f":"IF(ISNUMBER(ハラスメント調査データ!X3),(ハラスメント調査データ!X3*0.01),ハラスメント調査データ!X3)","v":0},{"$f":"IF(ISNUMBER(ハラスメント調査データ!Y3),(ハラスメント調査データ!Y3*0.01),ハラスメント調査データ!Y3)","v":0}]
[0,0,0,{"$f":"D11","v":0},{"$f":"E11","v":0},{"$f":"F11","v":0},{"$f":"ハラスメント調査データ!I4","v":0},null,null,null,{"$f":"IF(ISNUMBER(ハラスメント調査データ!O4),IF(ハラスメント調査データ!O4>=0.1,\"▲\"&TEXT(ROUND(ハラスメント調査データ!O4,1),\"0.0\"),IF(ハラスメント調査データ!O4<-0.1,\"▼\"&TEXT(ROUND(ハラスメント調査データ!O4,1),\"0.0\"),)),ハラスメント調査データ!O4)","v":0},{"$f":"IF(ISNUMBER(ハラスメント調査データ!P4),IF(ハラスメント調査データ!P4>=0.1,\"▲\"&TEXT(ROUND(ハラスメント調査データ!P4,1),\"0.0\"),IF(ハラスメント調査データ!P4<-0.1,\"▼\"&TEXT(ROUND(ハラスメント調査データ!P4,1),\"0.0\"),)),ハラスメント調査データ!P4)","v":0},{"$f":"IF(ISNUMBER(ハラスメント調査データ!Q4),IF(ハラスメント調査データ!Q4>=0.1,\"▲\"&TEXT(ROUND(ハラスメント調査データ!Q4,1),\"0.0\"),IF(ハラスメント調査データ!Q4<-0.1,\"▼\"&TEXT(ROUND(ハラスメント調査データ!Q4,1),\"0.0\"),)),ハラスメント調査データ!Q4)","v":0},{"$f":"IF(ISNUMBER(ハラスメント調査データ!R4),IF(ハラスメント調査データ!R4>=0.1,\"▲\"&TEXT(ROUND(ハラスメント調査データ!R4,1),\"0.0\"),IF(ハラスメント調査データ!R4<-0.1,\"▼\"&TEXT(ROUND(ハラスメント調査データ!R4,1),\"0.0\"),)),ハラスメント調査データ!R4)","v":0},{"$f":"IF(ISNUMBER(ハラスメント調査データ!S4),IF(ハラスメント調査データ!S4>=0.1,\"▲\"&TEXT(ROUND(ハラスメント調査データ!S4,1),\"0.0\"),IF(ハラスメント調査データ!S4<-0.1,\"▼\"&TEXT(ROUND(ハラスメント調査データ!S4,1),\"0.0\"),)),ハラスメント調査データ!S4)","v":0},{"$f":"IF(ISNUMBER(ハラスメント調査データ!T4),IF(ハラスメント調査データ!T4>=0.1,\"▲\"&TEXT(ROUND(ハラスメント調査データ!T4,1),\"0.0\"),IF(ハラスメント調査データ!T4<-0.1,\"▼\"&TEXT(ROUND(ハラスメント調査データ!T4,1),\"0.0\"),)),ハラスメント調査データ!T4)","v":0},{"$f":"IF(ISNUMBER(ハラスメント調査データ!U4),IF(ハラスメント調査データ!U4>=0.1,\"▲\"&TEXT(ROUND(ハラスメント調査データ!U4,1),\"0.0\"),IF(ハラスメント調査データ!U4<-0.1,\"▼\"&TEXT(ROUND(ハラスメント調査データ!U4,1),\"0.0\"),)),ハラスメント調査データ!U4)","v":0},{"$f":"IF(ISNUMBER(ハラスメント調査データ!V4),IF(ハラスメント調査データ!V4>=0.1,\"▲\"&TEXT(ROUND(ハラスメント調査データ!V4,1),\"0.0\"),IF(ハラスメント調査データ!V4<-0.1,\"▼\"&TEXT(ROUND(ハラスメント調査データ!V4,1),\"0.0\"),)),ハラスメント調査データ!V4)","v":0},{"$f":"IF(ISNUMBER(ハラスメント調査データ!W4),IF(ハラスメント調査データ!W4>=0.1,\"▲\"&TEXT(ROUND(ハラスメント調査データ!W4,1),\"0.0\"),IF(ハラスメント調査データ!W4<-0.1,\"▼\"&TEXT(ROUND(ハラスメント調査データ!W4,1),\"0.0\"),)),ハラスメント調査データ!W4)","v":0},{"$f":"IF(ISNUMBER(ハラスメント調査データ!X4),IF(ハラスメント調査データ!X4>=0.1,\"▲\"&TEXT(ROUND(ハラスメント調査データ!X4,1),\"0.0\"),IF(ハラスメント調査データ!X4<-0.1,\"▼\"&TEXT(ROUND(ハラスメント調査データ!X4,1),\"0.0\"),)),ハラスメント調査データ!X4)","v":0},{"$f":"IF(ISNUMBER(ハラスメント調査データ!Y4),IF(ハラスメント調査データ!Y4>=0.1,\"▲\"&TEXT(ROUND(ハラスメント調査データ!Y4,1),\"0.0\"),IF(ハラスメント調査データ!Y4<-0.1,\"▼\"&TEXT(ROUND(ハラスメント調査データ!Y4,1),\"0.0\"),)),ハラスメント調査データ!Y4)","v":0}]

{"sheet":"偏差値調査データ","index":5,"n_rows":0,"n_cols":0,"rows_kept":0,"cut":false,"hidden":true,"merged":[]}

{"sheet":"偏差値調査結果一覧","index":6,"n_rows":12,"n_cols":11,"rows_kept":12,"cut":false,"hidden":true,"merged":[[4,0,5,7]]}
[{"$f":"\"■\"&MENU!H11&\"　\"&\"調査グループ別調査結果一覧\"","v":"■　調査グループ別調査結果一覧"}]
[]
["実施期間",{"$f":"(\"＃\"&偏差値調査データ!I2)&\"：\"&TEXT(偏差値調査データ!J2,\"yyyy/m/d\")&\"　～　\"&TEXT(偏差値調査データ!K2,\"yyyy/m/d\")","v":"＃：1900/1/0　～　1900/1/0"},null,null,{"$f":"(\"＃\"&偏差値調査データ!I3)&\"：\"&TEXT(偏差値調査データ!J3,\"yyyy/m/d\")&\"　～　\"&TEXT(偏差値調査データ!K3,\"yyyy/m/d\")","v":"＃：1900/1/0　～　1900/1/0"}]
[]
["【偏差値】■35未満　■35以上40未満　■40以上45未満　□45以上60未満　■60以上　　\n【比較】▲：前回より3以上上昇　▼：前回より3以上下降　該当箇所は黄色セル\n個別因子の値はすべて偏差値です。個人の偏差値は弊社保有のデータから算出したもので、50を標準として考えます。\nまた、数値は低いほど課題があり、高いほど良い結果であることを意味します。"]
[]
[]
["調査グループ名",null,null,null,null,null,"実施状況",null,null,null,"個別因子"]
["第一階層","第二階層","第三階層","第四階層","第五階層","第六階層","回次","対象人数","回答人数","回答率",{"$f":"偏差値調査データ!O1","v":0}]
[{"$f":"偏差値調査データ!C2","v":0},{"$f":"偏差値調査データ!D2","v":0},{"$f":"偏差値調査データ!E2","v":0},{"$f":"偏差値調査データ!F2","v":0},{"$f":"偏差値調査データ!G2","v":0},{"$f":"偏差値調査データ!H2","v":0},{"$f":"\"#\"&偏差値調査データ!I2","v":"#"},{"$f":"偏差値調査データ!L2","v":0},{"$f":"偏差値調査データ!M2","v":0},{"$f":"偏差値調査データ!N2*0.01","v":0},{"$f":"偏差値調査データ!O2","v":0}]
[{"$f":"A10","v":0},0,0,0,0,0,{"$f":"\"#\"&偏差値調査データ!I3","v":"#"},{"$f":"偏差値調査データ!L3","v":0},{"$f":"偏差値調査データ!M3","v":0},{"$f":"偏差値調査データ!N3*0.01","v":0},{"$f":"偏差値調査データ!O3","v":0}]
[0,0,0,0,0,0,{"$f":"偏差値調査データ!I4","v":0},null,null,null,{"$f":"IF(ISNUMBER(偏差値調査データ!O4), IF(偏差値調査データ!O4>=3,\"▲\"&TEXT(ROUND(偏差値調査データ!O4,1),\"0.0\"),IF(偏差値調査データ!O4<-3,\"▼\"&TEXT(ROUND(偏差値調査データ!O4,1),\"0.0\"),TEXT(ROUND(偏差値調査データ!O4,1),\"0.0\"))),偏差値調査データ!O4)","v":0}]